fUST/lending_fUST_20250626
["ID","MTS","AMOUNT","RATE_DAILY","PERIOD"]
[367852948,1750945864666,-2347.55,0.00019452,2]
[367852949,1750945864688,-517.55,0.00019452,2]
[367852950,1750945864706,-1417.04,0.00019452,2]
[367852951,1750945864724,-562.99,0.00019452,2]
[367852952,1750945864742,-460.0,0.00019452,2]
[367852953,1750945864761,-661.16,0.00019452,2]
[367852954,1750945864780,-4377.88,0.00019452,2]
[367852955,1750945864799,-519.95,0.00019452,2]
[367852956,1750945864817,-2947.08,0.00019452,2]
[367852957,1750945864831,-460.0,0.00019452,2]
[367852958,1750945864845,-1094.21,0.00019452,2]
[367852959,1750945864865,-460.0,0.00019452,2]
[367852960,1750945864881,-460.0,0.00019452,2]
[367852961,1750945864900,-160.45182555,0.00019452,2]
[367852962,1750945864915,-460.0,0.00019452,2]
[367852963,1750945864927,-460.0,0.00019452,2]
[367852964,1750945864945,-589.06,0.00019452,2]
[367852965,1750945864960,-641.74,0.00019452,2]
[367852966,1750945864975,-1239.94,0.00019452,2]
[367852967,1750945864990,-460.0,0.00019452,2]
[367852968,1750945865003,-556.83,0.00019452,2]
[367852969,1750945865017,-460.0,0.00019452,2]
[367852970,1750945865032,-466.95,0.00019452,2]
[367852971,1750945865046,-1347.46,0.00019452,2]
[367852972,1750945865059,-3717.3,0.00019452,2]
[367852973,1750945865073,-488.41,0.00019452,2]
[367852974,1750945865087,-460.0,0.00019452,2]
[367852975,1750945865102,-460.0,0.00019452,2]
[367852976,1750945865116,-1396.1,0.00019452,2]
[367852977,1750945865129,-460.0,0.00019452,2]
[367852978,1750945865143,-460.0,0.00019452,2]
[367852979,1750945865157,-581.16,0.00019452,2]
[367852980,1750945865170,-151.0,0.00019452,2]
[367852981,1750945865183,-1606.11,0.00019452,2]
[367852982,1750945865198,-781.78,0.00019452,2]
[367852983,1750945865213,-460.0,0.00019452,2]
[367852984,1750945865226,-1615.99,0.00019452,2]
[367852985,1750945865240,-460.0,0.00019452,2]
[367852986,1750945865253,-654.98,0.00019452,2]
[367852987,1750945865266,-777.89,0.00019452,2]
[367852988,1750945865279,-460.0,0.00019452,2]
[367852989,1750945865293,-1601.04,0.00019452,2]
[367852990,1750945865307,-541.1,0.00019452,2]
[367852991,1750945865320,-947.87,0.00019452,2]
[367852992,1750945865334,-506.98,0.00019452,2]
[367852993,1750945865347,-460.0,0.00019452,2]
[367852994,1750945865363,-151.0,0.00019452,2]
[367852995,1750945865377,-551.12,0.00019452,2]
[367852996,1750945865390,-460.0,0.00019452,2]
[367852997,1750945865403,-151.0,0.00019452,2]
[367852998,1750945865417,-460.0,0.00019452,2]
[367852999,1750945865430,-460.0,0.00019452,2]
[367853000,1750945865444,-460.0,0.00019452,2]
[367853001,1750945865458,-2153.56,0.00019452,2]
[367853002,1750945865472,-1103.1,0.00019452,2]
[367853003,1750945865486,-460.0,0.00019452,2]
[367853004,1750945865500,-244.0,0.00019453,2]
[367853005,1750945865516,-1000.0,0.00019516,2]
[367853006,1750945865531,-1127.19226716,0.00019516,2]
[367853007,1750945865544,-587.0,0.00019589,2]
[367853008,1750945865559,-500.0,0.00019619,2]
[367853009,1750945865572,-500.0,0.00019619,2]
[367853010,1750945865586,-500.0,0.00019619,2]
[367853011,1750945865600,-500.0,0.00019619,2]
[367853012,1750945865614,-500.0,0.00019619,2]
[367853013,1750945865628,-500.0,0.00019619,2]
[367853014,1750945865641,-500.0,0.00019619,2]
[367853015,1750945865654,-500.0,0.00019619,2]
[367853016,1750945865668,-200.2532582,0.00019619,2]
[367853017,1750945865682,-500.0,0.00019619,2]
[367853018,1750945865696,-500.0,0.00019619,2]
[367853019,1750945865709,-500.0,0.00019619,2]
[367853020,1750945865723,-500.0,0.00019619,2]
[367853021,1750945865738,-362.21212231,0.00019619,2]
[367853022,1750945865752,-500.35372595,0.00019637,2]
[367853023,1750945865765,-5887.53402344,0.00019659,2]
[367853024,1750945865781,-160.0,0.000197,5]
[367853025,1750945865794,-160.0,0.000197,5]
[367853026,1750945865807,-160.0,0.000197,3]
[367853027,1750945865817,-160.0,0.000197,4]
[367853028,1750945865826,-160.0,0.000197,3]
[367853029,1750945865836,-160.0,0.000197,3]
[367853030,1750945865846,-160.0,0.000197,3]
[367853031,1750945865856,-160.0,0.000197,4]
[367853032,1750945866037,-160.0,0.000197,4]
[367853033,1750945866061,-160.0,0.000197,5]
[367853034,1750945866072,-160.0,0.000197,5]
[367853035,1750945866082,-160.0,0.000197,5]
[367853036,1750945866092,-160.0,0.000197,5]
[367853037,1750945866102,-920.03,0.000197,2]
[367853038,1750945866112,-155.0,0.00019725,2]
[367853039,1750945866121,-460.0,0.00019726,2]
[367853040,1750945866130,-483.8,0.00019726,2]
[367853041,1750945866139,-460.0,0.00019726,2]
[367853042,1750945866149,-460.0,0.00019726,2]
[367853043,1750945866158,-460.0,0.00019726,2]
[367853044,1750945866168,-460.0,0.00019726,2]
[367853045,1750945866178,-460.0,0.00019726,2]
[367853046,1750945866187,-496.7,0.00019726,2]
[367853047,1750945866196,-460.0,0.00019726,2]
[367853048,1750945866206,-460.0,0.00019726,2]
[367853049,1750945866215,-151.0,0.00019726,2]
[367853050,1750945866224,-460.0,0.00019726,2]
[367853051,1750945866234,-460.0,0.00019726,2]
[367853052,1750945866244,-151.0,0.00019726,2]
[367853053,1750945866253,-460.0,0.00019726,2]
[367853054,1750945866262,-151.0,0.00019726,2]
[367853055,1750945866272,-460.0,0.00019726,2]
[367853056,1750945866281,-460.0,0.00019726,2]
[367853057,1750945866290,-151.0,0.00019726,2]
[367853058,1750945866300,-706.05,0.00019726,2]
[367853059,1750945866309,-460.0,0.00019726,2]
[367853060,1750945866319,-460.0,0.00019726,2]
[367853061,1750945866328,-460.0,0.00019726,2]
[367853062,1750945866337,-1012.6,0.00019726,2]
[367853063,1750945866347,-484.57246519,0.00019726,2]
[367853064,1750945866358,-460.0,0.00019726,2]
[367853065,1750945866368,-460.0,0.00019726,2]
[367853066,1750945866377,-460.0,0.00019726,2]
[367853067,1750945866387,-460.0,0.00019726,2]
[367853068,1750945866397,-460.0,0.00019726,2]
[367853069,1750945866406,-460.0,0.00019726,2]
[367853070,1750945866416,-460.0,0.00019726,2]
[367853071,1750945866425,-460.0,0.00019726,2]
[367853072,1750945866435,-460.0,0.00019726,2]
[367853073,1750945866444,-460.0,0.00019726,2]
[367853074,1750945866454,-625.29,0.00019726,2]
[367853075,1750945866464,-151.0,0.00019726,2]
[367853076,1750945866474,-460.0,0.00019726,2]
[367853077,1750945866484,-463.07,0.00019726,2]
[367853078,1750945866493,-533.16,0.00019726,2]
[367853079,1750945866503,-1543.99,0.00019726,2]
[367853080,1750945866512,-460.0,0.00019726,2]
[367853081,1750945866522,-460.0,0.00019726,2]
[367853082,1750945866532,-2101.76,0.00019726,2]
[367853083,1750945866542,-460.0,0.00019726,2]
[367853084,1750945866552,-489.27,0.00019726,2]
[367853085,1750945866563,-1224.13,0.00019726,2]
[367853086,1750945866572,-502.33,0.00019726,2]
[367853087,1750945866582,-460.0,0.00019726,2]
[367853088,1750945866591,-610.36,0.00019726,2]
[367853089,1750945866601,-460.0,0.00019726,2]
[367853090,1750945866612,-460.0,0.00019726,2]
[367853091,1750945866622,-479.77,0.00019726,2]
[367853092,1750945866631,-585.64,0.00019726,2]
[367853093,1750945866641,-2347.55,0.00019726,2]
[367853094,1750945866651,-517.55,0.00019726,2]
[367853095,1750945866661,-1417.04,0.00019726,2]
[367853096,1750945866670,-460.0,0.00019726,2]
[367853097,1750945866681,-151.0,0.00019726,2]
[367853098,1750945866692,-661.16,0.00019726,2]
[367853099,1750945866703,-4377.88,0.00019726,2]
[367853100,1750945866713,-519.95,0.00019726,2]
[367853101,1750945866724,-2947.08,0.00019726,2]
[367853102,1750945866734,-151.0,0.00019726,2]
[367853103,1750945866744,-151.0,0.00019726,2]
[367853104,1750945866754,-460.0,0.00019726,2]
[367853105,1750945866764,-1094.21,0.00019726,2]
[367853106,1750945866774,-460.0,0.00019726,2]
[367853107,1750945866784,-460.0,0.00019726,2]
[367853108,1750945866794,-460.0,0.00019726,2]
[367853109,1750945866804,-460.0,0.00019726,2]
[367853110,1750945866814,-589.06,0.00019726,2]
[367853111,1750945866823,-641.74,0.00019726,2]
[367853112,1750945866833,-1239.94,0.00019726,2]
[367853113,1750945866842,-460.0,0.00019726,2]
[367853114,1750945866851,-556.83,0.00019726,2]
[367853115,1750945866861,-460.0,0.00019726,2]
[367853116,1750945866870,-466.95,0.00019726,2]
[367853117,1750945866879,-1347.46,0.00019726,2]
[367853118,1750945866889,-3717.3,0.00019726,2]
[367853119,1750945866899,-488.41,0.00019726,2]
[367853120,1750945866909,-460.0,0.00019726,2]
[367853121,1750945866919,-460.0,0.00019726,2]
[367853122,1750945866929,-1396.1,0.00019726,2]
[367853123,1750945866939,-460.0,0.00019726,2]
[367853124,1750945866948,-151.0,0.00019726,2]
[367853125,1750945866959,-581.16,0.00019726,2]
[367853126,1750945866968,-1606.11,0.00019726,2]
[367853127,1750945866977,-781.78,0.00019726,2]
[367853128,1750945866987,-460.0,0.00019726,2]
[367853129,1750945866996,-1615.99,0.00019726,2]
[367853130,1750945867005,-460.0,0.00019726,2]
[367853131,1750945867015,-654.98,0.00019726,2]
[367853132,1750945867026,-777.89,0.00019726,2]
[367853133,1750945867035,-460.0,0.00019726,2]
[367853134,1750945867045,-1601.04,0.00019726,2]
[367853135,1750945867054,-541.1,0.00019726,2]
[367853136,1750945867063,-947.87,0.00019726,2]
[367853137,1750945867072,-506.98,0.00019726,2]
[367853138,1750945867082,-460.0,0.00019726,2]
[367853139,1750945867091,-551.12,0.00019726,2]
[367853140,1750945867100,-460.0,0.00019726,2]
[367853141,1750945867109,-460.0,0.00019726,2]
[367853142,1750945867119,-460.0,0.00019726,2]
[367853143,1750945867130,-460.0,0.00019726,2]
[367853144,1750945867139,-2153.56,0.00019726,2]
[367853145,1750945867150,-1103.1,0.00019726,2]
[367853146,1750945867159,-460.0,0.00019726,2]
[367853147,1750945867168,-171.72551476,0.00019768,2]
[367853148,1750945867177,-244.0,0.00019792,2]
[367853149,1750945867187,-244.0,0.00019882,2]
[367853150,1750945867197,-302.0,0.00019889,2]
[367853151,1750945867206,-1165.39402412,0.00019898,2]
[367853152,1750945867215,-5887.53402344,0.00019934,2]
[367853153,1750945867225,-1057.77139467,0.00019947,2]
[367853154,1750945867234,-173.0,0.00019986,2]
[367853155,1750945867244,-500.0,0.00019997,2]
[367853156,1750945867255,-42727.4162671,0.0002,2]
[367853157,1750945867265,-160.0,0.0002,6]
[367853158,1750945867274,-160.0,0.0002,6]
[367853159,1750945867283,-160.0,0.0002,6]
[367853160,1750945867292,-460.0,0.0002,2]
[367853161,1750945867302,-483.8,0.0002,2]
[367853162,1750945867312,-460.0,0.0002,2]
[367853163,1750945867323,-460.0,0.0002,2]
[367853164,1750945867334,-460.0,0.0002,2]
[367853165,1750945867345,-460.0,0.0002,2]
[367853166,1750945867356,-460.0,0.0002,2]
[367853167,1750945867365,-496.7,0.0002,2]
[367853168,1750945867375,-460.0,0.0002,2]
[367853169,1750945867384,-486.47,0.0002,2]
[367853170,1750945867394,-460.0,0.0002,2]
[367853171,1750945867404,-460.0,0.0002,2]
[367853172,1750945867413,-460.0,0.0002,2]
[367853173,1750945867423,-460.0,0.0002,2]
[367853174,1750945867432,-460.0,0.0002,2]
[367853175,1750945867441,-151.0,0.0002,2]
[367853176,1750945867451,-706.05,0.0002,2]
[367853177,1750945867460,-460.0,0.0002,2]
[367853178,1750945867470,-460.0,0.0002,2]
[367853179,1750945867480,-460.0,0.0002,2]
[367853180,1750945867490,-1012.6,0.0002,2]
[367853181,1750945867499,-460.0,0.0002,2]
[367853182,1750945867509,-460.0,0.0002,2]
[367853183,1750945867519,-572.47176545,0.0002,2]
[367853184,1750945867528,-460.0,0.0002,2]
[367853185,1750945867538,-460.0,0.0002,2]
[367853186,1750945867548,-460.0,0.0002,2]
[367853187,1750945867557,-460.0,0.0002,2]
[367853188,1750945867566,-518.12664175,0.0002,2]
[367853189,1750945867575,-460.0,0.0002,2]
[367853190,1750945867585,-625.29,0.0002,2]
[367853191,1750945867594,-460.0,0.0002,2]
[367853192,1750945867604,-460.0,0.0002,2]
[367853193,1750945867614,-463.07,0.0002,2]
[367853194,1750945867623,-533.16,0.0002,2]
[367853195,1750945867633,-1543.99,0.0002,2]
[367853196,1750945867643,-402.77,0.0002,2]
[367853197,1750945867653,-460.0,0.0002,2]
[367853198,1750945867665,-2101.76,0.0002,2]
[367853199,1750945867675,-460.0,0.0002,2]
[367853200,1750945867685,-489.27,0.0002,2]
[367853201,1750945867695,-1224.13,0.0002,2]
[367853202,1750945867705,-502.33,0.0002,2]
[367853203,1750945867715,-460.0,0.0002,2]
[367853204,1750945867724,-610.36,0.0002,2]
[367853205,1750945867734,-460.0,0.0002,2]
[367853206,1750945867744,-608.18,0.0002,2]
[367853207,1750945867755,-479.77,0.0002,2]
[367853208,1750945867764,-585.64,0.0002,2]
[367853209,1750945867774,-2347.55,0.0002,2]
[367853210,1750945867786,-517.55,0.0002,2]
[367853211,1750945867796,-1417.04,0.0002,2]
[367853212,1750945867806,-460.0,0.0002,2]
[367853213,1750945867816,-661.16,0.0002,2]
[367853214,1750945867827,-4377.88,0.0002,2]
[367853215,1750945867838,-519.95,0.0002,2]
[367853216,1750945867847,-2947.08,0.0002,2]
[367853217,1750945867858,-460.0,0.0002,2]
[367853218,1750945867867,-1094.21,0.0002,2]
[367853219,1750945867876,-460.0,0.0002,2]
[367853220,1750945867886,-460.0,0.0002,2]
[367853221,1750945867895,-460.0,0.0002,2]
[367853222,1750945867904,-460.0,0.0002,2]
[367853223,1750945867915,-589.06,0.0002,2]
[367853224,1750945867924,-641.74,0.0002,2]
[367853225,1750945867934,-1239.94,0.0002,2]
[367853226,1750945867943,-224.63,0.0002,2]
[367853227,1750945867953,-556.83,0.0002,2]
[367853228,1750945867963,-460.0,0.0002,2]
[367853229,1750945867973,-466.95,0.0002,2]
[367853230,1750945867984,-1347.46,0.0002,2]
[367853231,1750945867994,-3717.3,0.0002,2]
[367853232,1750945868005,-488.41,0.0002,2]
[367853233,1750945868016,-460.0,0.0002,2]
[367853234,1750945868027,-460.0,0.0002,2]
[367853235,1750945868038,-1396.1,0.0002,2]
[367853236,1750945868048,-460.0,0.0002,2]
[367853237,1750945868058,-581.16,0.0002,2]
[367853238,1750945868067,-1606.11,0.0002,2]
[367853239,1750945868077,-781.78,0.0002,2]
[367853240,1750945868087,-460.0,0.0002,2]
[367853241,1750945868096,-1615.99,0.0002,2]
[367853242,1750945868107,-460.0,0.0002,2]
[367853243,1750945868117,-654.98,0.0002,2]
[367853244,1750945868126,-777.89,0.0002,2]
[367853245,1750945868136,-460.0,0.0002,2]
[367853246,1750945868146,-1601.04,0.0002,2]
[367853247,1750945868156,-541.1,0.0002,2]
[367853248,1750945868165,-947.87,0.0002,2]
[367853249,1750945868175,-506.98,0.0002,2]
[367853250,1750945868185,-460.0,0.0002,2]
[367853251,1750945868195,-370.80919601,0.0002,2]
[367853252,1750945868205,-551.12,0.0002,2]
[367853253,1750945868214,-568.8232412,0.0002,2]
[367853254,1750945868224,-460.0,0.0002,2]
[367853255,1750945868234,-460.0,0.0002,2]
[367853256,1750945868245,-2153.56,0.0002,2]
[367853257,1750945868254,-460.0,0.0002,2]
[367853258,1750945868264,-1103.1,0.0002,2]
[367853259,1750945868273,-160.0,0.0002,3]
[367853260,1750945868283,-244.0,0.00020034,2]
[367853261,1750945868293,-151.0,0.00020056,2]
[367853262,1750945868302,-151.0,0.00020056,2]
[367853263,1750945868312,-151.0,0.00020056,2]
[367853264,1750945868321,-151.0,0.00020056,2]
[367853265,1750945868330,-162.744278,0.00020056,2]
[367853266,1750945868340,-162.744278,0.00020056,2]
[367853267,1750945868349,-488.63975,0.00020056,2]
[367853268,1750945868360,-488.63975,0.00020056,2]
[367853269,1750945868369,-151.0,0.00020056,2]
[367853270,1750945868378,-176.4833,0.00020056,2]
[367853271,1750945868388,-151.0,0.00020056,2]
[367853272,1750945868397,-151.0,0.00020056,2]
[367853273,1750945868407,-151.0,0.00020056,2]
[367853274,1750945868416,-500.0,0.00020056,2]
[367853275,1750945868428,-472.06,0.00020056,2]
[367853276,1750945868439,-5000.0,0.00020056,2]
[367853277,1750945868449,-500.0,0.00020056,2]
[367853278,1750945868459,-500.0,0.00020056,2]
[367853279,1750945868469,-200.0,0.00020056,2]
[367853280,1750945868479,-207.4,0.00020056,2]
[367853281,1750945868489,-500.0,0.00020056,2]
[367853282,1750945868499,-200.0,0.00020056,2]
[367853283,1750945868508,-500.0,0.00020056,2]
[367853284,1750945868517,-500.0,0.00020056,2]
[367853285,1750945868527,-200.0,0.00020056,2]
[367853286,1750945868537,-500.0,0.00020056,2]
[367853287,1750945868546,-500.0,0.00020056,2]
[367853288,1750945868556,-200.0,0.00020056,2]
[367853289,1750945868566,-500.0,0.00020056,2]
[367853290,1750945868575,-500.0,0.00020056,2]
[367853291,1750945868585,-200.0,0.00020056,2]
[367853292,1750945868594,-500.0,0.00020056,2]
[367853293,1750945868603,-239.37018834,0.00020056,2]
[367853294,1750945868615,-500.0,0.00020056,2]
[367853295,1750945868625,-200.0,0.00020056,2]
[367853296,1750945868635,-500.0,0.00020056,2]
[367853297,1750945868645,-411.10678173,0.00020056,2]
[367853298,1750945868654,-200.0,0.00020056,2]
[367853299,1750945868664,-500.0,0.00020056,2]
[367853300,1750945868674,-200.0,0.00020056,2]
[367853301,1750945868683,-500.0,0.00020056,2]
[367853302,1750945868693,-200.0,0.00020056,2]
[367853303,1750945868702,-500.0,0.00020056,2]
[367853304,1750945868712,-200.0,0.00020056,2]
[367853305,1750945868721,-500.0,0.00020056,2]
[367853306,1750945868731,-200.0,0.00020056,2]
[367853307,1750945868740,-500.0,0.00020056,2]
[367853308,1750945868750,-200.0,0.00020056,2]
[367853309,1750945868760,-500.0,0.00020056,2]
[367853310,1750945868769,-200.0,0.00020056,2]
[367853311,1750945868779,-500.0,0.00020056,2]
[367853312,1750945868905,-500.0,0.00020056,2]
[367853313,1750945868925,-200.0,0.00020056,2]
[367853314,1750945868934,-500.0,0.00020056,2]
[367853315,1750945868944,-200.0,0.00020056,2]
[367853316,1750945868953,-500.0,0.00020056,2]
[367853317,1750945868962,-200.0,0.00020056,2]
[367853318,1750945868972,-500.0,0.00020056,2]
[367853319,1750945868982,-500.0,0.00020056,2]
[367853320,1750945868992,-200.0,0.00020056,2]
[367853321,1750945869001,-500.0,0.00020056,2]
[367853322,1750945869012,-25000.0,0.00020056,2]
[367853323,1750945869022,-8632.14390024,0.00020056,2]
[367853324,1750945869031,-151.0,0.00020059,2]
[367853325,1750945869040,-151.0,0.00020059,2]
[367853326,1750945869051,-283.332929,0.00020059,2]
[367853327,1750945869060,-151.0,0.00020059,2]
[367853328,1750945869069,-151.0,0.00020059,2]
[367853329,1750945869079,-151.0,0.00020059,2]
[367853330,1750945869088,-151.0,0.00020059,2]
[367853331,1750945869098,-162.744278,0.00020059,2]
[367853332,1750945869108,-162.744278,0.00020059,2]
[367853333,1750945869117,-151.0,0.00020059,2]
[367853334,1750945869126,-488.63975,0.00020059,2]
[367853335,1750945869139,-488.63975,0.00020059,2]
[367853336,1750945869149,-153.677598,0.00020059,2]
[367853337,1750945869158,-151.0,0.00020059,2]
[367853338,1750945869167,-151.0,0.00020059,2]
[367853339,1750945869176,-151.0,0.00020059,2]
[367853340,1750945869185,-151.0,0.00020059,2]
[367853341,1750945869195,-151.806325,0.00020059,2]
[367853342,1750945869204,-151.0,0.00020067,2]
[367853343,1750945869213,-151.0,0.00020067,2]
[367853344,1750945869223,-151.0,0.00020067,2]
[367853345,1750945869231,-151.0,0.00020067,2]
[367853346,1750945869242,-500.0,0.00020073,2]
[367853347,1750945869252,-500.0,0.00020073,2]
[367853348,1750945869261,-1000.0,0.00020167,2]
[367853349,1750945869271,-1000.0,0.00020167,2]
[367853350,1750945869280,-1000.0,0.00020167,2]
[367853351,1750945869290,-1000.0,0.00020167,2]
[367853352,1750945869300,-202.356655,0.00020187,2]
[367853353,1750945869309,-151.0,0.000202,4]
[367853354,1750945869318,-500.0,0.000202,2]
[367853355,1750945869327,-500.0,0.000202,2]
[367853356,1750945869336,-500.0,0.000202,2]
[367853357,1750945869346,-151.0,0.00020272,2]
[367853358,1750945869355,-285.347374,0.00020273,2]
[367853359,1750945869367,-285.347374,0.00020273,2]
[367853360,1750945869376,-460.0,0.00020273,2]
[367853361,1750945869385,-151.0,0.00020273,2]
[367853362,1750945869394,-483.8,0.00020273,2]
[367853363,1750945869404,-460.0,0.00020273,2]
[367853364,1750945869413,-460.0,0.00020273,2]
[367853365,1750945869422,-460.0,0.00020273,2]
[367853366,1750945869431,-460.0,0.00020273,2]
[367853367,1750945869441,-460.0,0.00020273,2]
[367853368,1750945869451,-496.7,0.00020273,2]
[367853369,1750945869460,-460.0,0.00020273,2]
[367853370,1750945869470,-460.0,0.00020273,2]
[367853371,1750945869480,-460.0,0.00020273,2]
[367853372,1750945869490,-460.0,0.00020273,2]
[367853373,1750945869499,-460.0,0.00020273,2]
[367853374,1750945869508,-460.0,0.00020273,2]
[367853375,1750945869517,-706.05,0.00020273,2]
[367853376,1750945869527,-460.0,0.00020273,2]
[367853377,1750945869537,-328.10923955,0.00020273,2]
[367853378,1750945869547,-460.0,0.00020273,2]
[367853379,1750945869556,-1012.6,0.00020273,2]
[367853380,1750945869566,-460.0,0.00020273,2]
[367853381,1750945869576,-460.0,0.00020273,2]
[367853382,1750945869586,-460.0,0.00020273,2]
[367853383,1750945869595,-460.0,0.00020273,2]
[367853384,1750945869604,-460.0,0.00020273,2]
[367853385,1750945869617,-460.0,0.00020273,2]
[367853386,1750945869627,-460.0,0.00020273,2]
[367853387,1750945869636,-625.29,0.00020273,2]
[367853388,1750945869646,-460.0,0.00020273,2]
[367853389,1750945869655,-460.0,0.00020273,2]
[367853390,1750945869664,-463.07,0.00020273,2]
[367853391,1750945869673,-533.16,0.00020273,2]
[367853392,1750945869683,-1543.99,0.00020273,2]
[367853393,1750945869692,-599.63577361,0.00020273,2]
[367853394,1750945869701,-2101.76,0.00020273,2]
[367853395,1750945869711,-460.0,0.00020273,2]
[367853396,1750945869720,-489.27,0.00020273,2]
[367853397,1750945869730,-1224.13,0.00020273,2]
[367853398,1750945869739,-502.33,0.00020273,2]
[367853399,1750945869749,-460.0,0.00020273,2]
[367853400,1750945869758,-610.36,0.00020273,2]
[367853401,1750945869767,-460.0,0.00020273,2]
[367853402,1750945869776,-479.77,0.00020273,2]
[367853403,1750945869785,-585.64,0.00020273,2]
[367853404,1750945869795,-2347.55,0.00020273,2]
[367853405,1750945869804,-517.55,0.00020273,2]
[367853406,1750945869818,-1417.04,0.00020273,2]
[367853407,1750945869827,-460.0,0.00020273,2]
[367853408,1750945869837,-519.95,0.00020273,2]
[367853409,1750945869846,-4377.88,0.00020273,2]
[367853410,1750945869856,-661.16,0.00020273,2]
[367853411,1750945869869,-2947.08,0.00020273,2]
[367853412,1750945869878,-460.0,0.00020273,2]
[367853413,1750945869888,-1094.21,0.00020273,2]
[367853414,1750945869898,-460.0,0.00020273,2]
[367853415,1750945869908,-460.0,0.00020273,2]
[367853416,1750945869917,-460.0,0.00020273,2]
[367853417,1750945869927,-460.0,0.00020273,2]
[367853418,1750945869936,-589.06,0.00020273,2]
[367853419,1750945869946,-641.74,0.00020273,2]
[367853420,1750945869955,-1239.94,0.00020273,2]
[367853421,1750945869965,-556.83,0.00020273,2]
[367853422,1750945869975,-460.0,0.00020273,2]
[367853423,1750945869984,-466.95,0.00020273,2]
[367853424,1750945869994,-1347.46,0.00020273,2]
[367853425,1750945870003,-3717.3,0.00020273,2]
[367853426,1750945870012,-488.41,0.00020273,2]
[367853427,1750945870022,-460.0,0.00020273,2]
[367853428,1750945870031,-460.0,0.00020273,2]
[367853429,1750945870041,-1396.1,0.00020273,2]
[367853430,1750945870051,-460.0,0.00020273,2]
[367853431,1750945870060,-581.16,0.00020273,2]
[367853432,1750945870070,-1606.11,0.00020273,2]
[367853433,1750945870079,-781.78,0.00020273,2]
[367853434,1750945870089,-460.0,0.00020273,2]
[367853435,1750945870099,-429.73373631,0.00020273,2]
[367853436,1750945870112,-654.98,0.00020273,2]
[367853437,1750945870122,-1615.99,0.00020273,2]
[367853438,1750945870132,-777.89,0.00020273,2]
[367853439,1750945870141,-460.0,0.00020273,2]
[367853440,1750945870151,-1601.04,0.00020273,2]
[367853441,1750945870160,-541.1,0.00020273,2]
[367853442,1750945870171,-947.87,0.00020273,2]
[367853443,1750945870180,-506.98,0.00020273,2]
[367853444,1750945870190,-460.0,0.00020273,2]
[367853445,1750945870199,-551.12,0.00020273,2]
[367853446,1750945870209,-460.0,0.00020273,2]
[367853447,1750945870219,-460.0,0.00020273,2]